fUST/lending_fUST_20240122
["ID","MTS","AMOUNT","RATE_DAILY","PERIOD"]
[312457742,1705897855190,-2209.75438277,0.00015548,2]
[312457743,1705897855199,-1253.41868812,0.00015548,2]
[312457744,1705897855209,-329.53567279,0.00015548,2]
[312457745,1705897855219,-5078.73775809,0.00015548,2]
[312457746,1705897855229,-17914.12,0.00021655,3]
[312457747,1705897855239,-26232.77034744,0.0004,7]
[312457748,1705897855252,-4058.31933782,0.0004,7]
[312457749,1705897855364,-2987.26697415,0.00015237,2]
[312457750,1705897855395,-60.96463213,0.00015237,2]
[312457751,1705897855465,977.99536434,0.00013993,2]
[312457752,1705897855623,-12000.0,0.00015393,2]
[312457753,1705897855659,-9686.1459775,0.00015393,2]
[312457754,1705897856210,-670.51802434,0.00014673,2]
[312457755,1705897856239,-13.68404131,0.00014673,2]
[312457756,1705897866584,1354.60028178,0.00014673,5]
[312457757,1705897869344,154.86062544,0.00013206,2]
[312457758,1705897872458,-246.36385807,0.00014673,2]
[312457759,1705897872652,-5.02783384,0.00014673,2]
[312457760,1705897873055,-154.86062544,0.00015,2]
[312457761,1705897873081,-382.01703794,0.00015,2]
[312457762,1705897873217,-165.81731245,0.00015,2]
[312457763,1705897874678,371.06035093,0.00013206,2]
[312457764,1705897874703,316.40586458,0.00013206,2]
[312457765,1705897875761,-1250.40186215,0.00014673,2]
[312457766,1705897875861,-25.51840535,0.00014673,2]
[312457767,1705897894109,249.95995018,0.00013206,2]
[312457768,1705897901150,3217.27513043,0.00013206,2]
[312457769,1705897904682,154.89449901,0.00013206,2]
[312457770,1705897906478,154.86062544,0.00013206,2]
[312457771,1705897907655,200.0,0.00022758,7]
[312457772,1705897908428,348.0,0.00022758,7]
[312457773,1705897911509,10297.45913414,0.00013206,2]
[312457774,1705897912043,534.96586546,0.00013206,2]
[312457775,1705897912080,249.95995018,0.00013206,2]
[312457776,1705897913903,154.86062544,0.00013206,2]
[312457777,1705897917154,3067.5307474,0.00013206,2]
[312457778,1705897919851,182.90507862,0.00013206,2]
[312457779,1705897922455,156.60731066,0.00013206,2]
[312457780,1705897925965,638.89080957,0.00013206,2]
[312457781,1705897928036,535.15083631,0.00013206,2]
[312457782,1705897929404,246.22587476,0.00013206,2]
[312457783,1705897929433,1029.53462481,0.00013206,2]
[312457784,1705897930082,251.43271688,0.00013206,2]
[312457785,1705897931352,10300.80544997,0.00013206,2]
[312457786,1705897933157,3217.27513043,0.00013206,2]
[312457787,1705897933590,167.09754524,0.00013206,2]
[312457788,1705897933902,154.86062544,0.00013206,2]
[312457789,1705897935154,309.47389438,0.00013206,2]
[312457790,1705897938372,206.12680294,0.00013206,2]
[312457791,1705897938792,155.63281268,0.00013206,2]
[312457792,1705897942856,1224.55299017,0.00013206,2]
[312457793,1705897943844,182.90507862,0.00013206,2]
[312457794,1705897948080,276.89495884,0.00013206,2]
[312457795,1705897949300,7523.4073696,0.00013206,2]
[312457796,1705897949328,2777.39808037,0.00013206,2]
[312457797,1705897950037,535.15083631,0.00013206,2]
[312457798,1705897951463,194.45817685,0.00013206,2]
[312457799,1705897951905,155.95609452,0.00013206,2]
[312457800,1705897959182,155.86036506,0.00013206,2]
[312457801,1705897961116,-536.98417311,0.00014542,2]
[312457802,1705897961230,-536.98417311,0.00014542,2]
[312457803,1705897961425,-12000.0,0.00014542,2]
[312457804,1705897961533,-2210.64324848,0.00014542,2]
[312457805,1705897961559,-154.86062544,0.00015,2]
[312457806,1705897961585,-547.94303379,0.00015,2]
[312457807,1705897961845,182.90507862,0.00013206,2]
[312457808,1705897964284,157.08029083,0.00013206,2]
[312457809,1705897968096,535.50424425,0.00013206,2]
[312457810,1705897971304,10300.80544997,0.00013206,2]
[312457811,1705897979855,182.90507862,0.00013206,2]
[312457812,1705897983053,-154.86062544,0.00015,2]
[312457813,1705897983079,-382.12354767,0.00015,2]
[312457814,1705897983263,-165.81948612,0.00015,2]
[312457815,1705897987305,10300.80544997,0.00013206,2]
[312457816,1705897992555,-240.20642496,0.00014538,2]
[312457817,1705897992721,-4.90217194,0.00014538,2]
[312457818,1705897999858,182.90507862,0.00013206,2]
[312457819,1705898005313,10300.80544997,0.00013206,2]
[312457820,1705898007145,-536.98417311,0.00015,2]
[312457821,1705898007194,-10.95886068,0.00015,2]
[312457822,1705898007223,-154.86062544,0.00015,2]
[312457823,1705898017861,182.90507862,0.00013206,2]
[312457824,1705898021306,1838.00799349,0.00013206,2]
[312457825,1705898023281,-373.15618178,0.0001543,2]
[312457826,1705898023403,-7.61543228,0.0001543,2]
[312457827,1705898031161,-687.08473289,0.00015,2]
[312457828,1705898031360,-14.02213741,0.00015,2]
[312457829,1705898033858,182.90507862,0.00013206,2]
[312457830,1705898039780,-261.04673482,0.00014531,2]
[312457831,1705898039964,-5.32748438,0.00014531,2]
[312457832,1705898043565,-550.40726352,0.0001453,2]
[312457833,1705898043731,-11.2328013,0.0001453,2]
[312457834,1705898044343,154.86062544,0.0001453,2]
[312457835,1705898044798,156.02710907,0.0001453,2]
[312457836,1705898045304,228.28672771,0.0001453,2]
[312457837,1705898045331,298.46619477,0.0001453,2]
[312457838,1705898055861,245.6363793,0.00013206,2]
[312457839,1705898095744,-2940.0,0.00014522,2]
[312457840,1705898095942,-60.0,0.00014522,2]
[312457841,1705898101934,-260.17256876,0.00014521,2]
[312457842,1705898102260,-5.30964426,0.00014521,2]
[312457843,1705898105986,182.85356156,0.00013206,2]
[312457844,1705898107628,-154.86062544,0.0001452,2]
[312457845,1705898107654,-329.53567279,0.0001452,2]
[312457846,1705898107681,-1218.66238839,0.0001452,2]
[312457847,1705898107804,-34.75629973,0.0001452,2]
[312457848,1705898133645,-12000.0,0.00014517,2]
[312457849,1705898133841,-12000.0,0.00014517,2]
[312457850,1705898133950,-8419.9722053,0.00014517,2]
[312457851,1705898155502,-595.13721922,0.00015507,2]
[312457852,1705898155529,-139.86066855,0.00015507,2]
[312457853,1705898155566,-14.99995689,0.00015507,2]
[312457854,1705898159599,-1267.89148173,0.00015507,2]
[312457855,1705898159906,-25.87533636,0.00015507,2]
[312457856,1705898159932,-170.92363548,0.00015507,2]
[312457857,1705898159959,-1071.09250989,0.00015507,2]
[312457858,1705898160042,-1267.89148173,0.00015507,2]
[312457859,1705898160412,-497.69330245,0.00015507,2]
[312457860,1705898160440,-11502.30669755,0.00015507,2]
[312457861,1705898160559,-7402.56486739,0.00015507,2]
[312457862,1705898160586,-4597.43513261,0.00015507,2]
[312457863,1705898160686,-12000.0,0.00015507,2]
[312457864,1705898160793,-5088.71084489,0.00015507,2]
[312457865,1705898160963,6911.28915511,0.00015507,2]
[312457866,1705898160989,1093.02676076,0.00015507,2]
[312457867,1705898161501,10586.5982821,0.00014512,2]
[312457868,1705898163061,320.37495714,0.00015507,2]
[312457869,1705898163087,1714.19670055,0.00015507,2]
[312457870,1705898163727,-1547.8060752,0.00015507,2]
[312457871,1705898163857,-31.58787909,0.00015507,2]
[312457872,1705898164226,1516.21819611,0.00015507,2]
[312457873,1705898164252,1547.8060752,0.00015507,2]
[312457874,1705898164279,1547.8060752,0.00015507,2]
[312457875,1705898164314,-466.90741158,0.00015507,2]
[312457876,1705898165096,1080.89866362,0.00015507,2]
[312457877,1705898165124,3491.26917074,0.00015507,2]
[312457878,1705898165153,241.78608772,0.00015507,2]
[312457879,1705898168150,154.86062544,0.00015506,2]
[312457880,1705898168682,-1217.70019125,0.00015507,2]
[312457881,1705898168716,-24.85102431,0.00015507,2]
[312457882,1705898168743,-1192.84916694,0.00015507,2]
[312457883,1705898168891,-246.34108322,0.00015507,2]
[312457884,1705898170803,971.35910803,0.00015507,2]
[312457885,1705898170834,2628.10663641,0.00015507,2]
[312457886,1705898170861,2628.10663641,0.00015507,2]
[312457887,1705898170888,241.41426156,0.00015507,2]
[312457888,1705898171316,-12000.0,0.00015507,2]
[312457889,1705898206727,200.0,0.00021242,7]
[312457890,1705898207644,348.0,0.00021242,7]
[312457891,1705898234090,-8004.31591587,0.00014506,2]
[312457892,1705898234111,-156.02710907,0.00014506,2]
[312457893,1705898234131,-265.48221302,0.00014506,2]
[312457894,1705898234152,-161.02224773,0.00014507,2]
[312457895,1705898234172,-470.67463112,0.00014507,2]
[312457896,1705898234193,-595.13721922,0.00014507,2]
[312457897,1705898234214,-7960.18375069,0.00014507,2]
[312457898,1705898234234,-2103.40493137,0.00014507,2]
[312457899,1705898234254,-1579.39395429,0.00014507,2]
[312457900,1705898234276,-19701.14547142,0.00014507,2]
[312457901,1705898234297,-555.36580163,0.00014508,2]
[312457902,1705898234317,-211.53795191,0.00014508,2]
[312457903,1705898234337,-903.63325516,0.00014508,2]
[312457904,1705898234357,-243.13309117,0.00014508,2]
[312457905,1705898234380,-3746.05559912,0.00014508,2]
[312457906,1705898234400,-711.772838,0.00014509,2]
[312457907,1705898234420,-323.59110907,0.00014509,2]
[312457908,1705898234439,-154.86062544,0.00014509,2]
[312457909,1705898234459,-644.40876473,0.00014509,2]
[312457910,1705898234480,-876.39189184,0.00014509,2]
[312457911,1705898234500,-616.7500659,0.00014509,2]
[312457912,1705898234520,-13719.8221343,0.00014509,2]
[312457913,1705898234541,-19867.27856324,0.00014509,2]
[312457914,1705898234560,-167.00483785,0.00014509,2]
[312457915,1705898234582,-154.86062544,0.00014509,2]
[312457916,1705898234602,-154.86062544,0.0001451,2]
[312457917,1705898234622,-10032.88477596,0.0001451,2]
[312457918,1705898248537,154.86062544,0.00013057,2]
[312457919,1705898266545,154.86062544,0.0001305,2]
[312457920,1705898277375,250.0,0.00013428,2]
[312457921,1705898282549,154.86062544,0.0001305,2]
[312457922,1705898300549,154.86062544,0.0001305,2]
[312457923,1705898308924,154.86062544,0.000135,2]
[312457924,1705898309252,2263.14473613,0.000135,2]
[312457925,1705898316012,-154.86062544,0.00013499,2]
[312457926,1705898316033,-2815.59302196,0.000135,2]
[312457927,1705898316054,-3485.76836938,0.000135,2]
[312457928,1705898316074,-262.3367316,0.000135,2]
[312457929,1705898316094,-154.86062544,0.000135,2]
[312457930,1705898316114,-20902.38645894,0.000135,2]
[312457931,1705898316134,-1242.55121556,0.00013501,2]
[312457932,1705898316157,-213.43652609,0.00013501,2]
[312457933,1705898316178,-15915.17297811,0.00013501,2]
[312457934,1705898316198,-1603.2097273,0.00013501,2]
[312457935,1705898316219,-154.86062544,0.00013501,2]
[312457936,1705898316240,-1696.62198985,0.00013502,2]
[312457937,1705898316262,-246.21885002,0.00013502,2]
[312457938,1705898316283,-1993.49479484,0.00013502,2]
[312457939,1705898316304,-977.99536434,0.00013502,2]
[312457940,1705898316324,-2039.05381066,0.00013502,2]
[312457941,1705898316345,-526.75292248,0.00013503,2]
[312457942,1705898316366,-14122.82536255,0.00013503,2]
[312457943,1705898333367,977.99536434,0.00012147,2]
[312457944,1705898334994,760.76957335,0.00012147,2]
[312457945,1705898351373,606.53135132,0.00012146,2]
[312457946,1705898386620,-1253.41868812,0.00013043,2]
[312457947,1705898386641,-1579.39395429,0.00013044,2]
[312457948,1705898386662,-3746.05559912,0.00013044,2]
[312457949,1705898386683,-301.93072688,0.00013044,2]
[312457950,1705898386707,-213.43652609,0.00013044,2]
[312457951,1705898386729,-20874.58230083,0.00013044,2]
[312457952,1705898386751,-323.59110907,0.00013045,2]
[312457953,1705898386772,-616.7500659,0.00013045,2]
[312457954,1705898386794,-243.13309117,0.00013045,2]
[312457955,1705898386815,-4813.95392208,0.00013045,2]
[312457956,1705898386837,-8004.31591587,0.00013045,2]
[312457957,1705898386860,-36965.59360405,0.00013045,2]
[312457958,1705898386882,-8269.84449653,0.00013045,2]
[312457959,1705898511492,200.0,0.00023079,7]
[312457960,1705898512254,200.0,0.00023079,7]
[312457961,1705898513038,200.0,0.00023079,7]
[312457962,1705898513829,200.0,0.00023079,7]
[312457963,1705898514894,275.0,0.00023079,7]
[312457964,1705898607220,155.67745124,0.00012915,2]
[312457965,1705898616555,877.02625975,0.00012016,2]
[312457966,1705898616584,10000.0,0.00012016,2]
[312457967,1705898616614,14022.97374025,0.00012016,2]
[312457969,1705898718053,4103.6638867,0.00012001,2]
[312457973,1705898953305,-154.86062544,0.00012867,2]
[312457974,1705898953326,-213.43652609,0.00012867,2]
[312457975,1705898953346,-8068.18398741,0.00012867,2]
[312458077,1705899031946,-1696.62198985,0.00012855,2]
[312458080,1705899031955,-903.63325516,0.00012855,2]
[312458083,1705899031964,-311.14431861,0.00012855,2]
[312458085,1705899031975,-20563.43798222,0.00012855,2]
[312458087,1705899031984,-561.64006482,0.00012856,2]
[312458089,1705899031993,-154.86062544,0.00012856,2]
[312458091,1705899032002,-265.48221302,0.00012856,2]
[312458093,1705899032011,-588.35431441,0.00012856,2]
[312458095,1705899032021,-161.02224773,0.00012856,2]
[312458097,1705899032030,-15915.17297811,0.00012856,2]
[312458099,1705899032040,-246.21885002,0.00012856,2]
[312458101,1705899032049,-178.76422807,0.00012857,2]
[312458103,1705899032058,-3130.04768523,0.00012857,2]
[312458104,1705899032067,-261.13863683,0.00012857,2]
[312458106,1705899032079,-213.43652609,0.00012857,2]
[312458108,1705899032092,-555.36580163,0.00012857,2]
[312458110,1705899032101,-20902.38645894,0.00012857,2]
[312458112,1705899032110,-329.53567279,0.00012858,2]
[312458114,1705899032119,-154.86062544,0.00012858,2]
[312458116,1705899032129,-301.93072688,0.00012858,2]
[312458118,1705899032138,-211.53795191,0.00012858,2]
[312458120,1705899032148,-2836.67729407,0.00012858,2]
[312458122,1705899032157,-156.02710907,0.00012858,2]
[312458124,1705899032167,-13719.8221343,0.00012858,2]
[312458126,1705899032176,-2034.57165769,0.00012859,2]
[312458128,1705899032185,-154.86062544,0.00012859,2]
[312458130,1705899032195,-170.92363548,0.00012859,2]
[312458133,1705899032204,-3485.76836938,0.00012859,2]
[312458134,1705899032213,-1603.2097273,0.00012859,2]
[312458137,1705899032223,-1293.76681809,0.00012859,2]
[312458139,1705899032231,-3746.05559912,0.00012859,2]
[312458140,1705899032243,-18904.87156494,0.00012859,2]
[312458142,1705899032253,-526.75292248,0.0001286,2]
[312458144,1705899032262,-8004.31591587,0.0001286,2]
[312458146,1705899032271,-680.10116762,0.0001286,2]
[312458148,1705899032280,-19867.27856324,0.0001286,2]
[312458150,1705899032289,-876.39189184,0.0001286,2]
[312458152,1705899032297,-1242.55121556,0.0001286,2]
[312458154,1705899032306,-154.86062544,0.0001286,2]
[312458156,1705899032315,-156.95509117,0.0001286,2]
[312458158,1705899032325,-10293.88087505,0.0001286,2]
[312458219,1705899038072,-711.772838,0.00012854,2]
[312458221,1705899038082,-8761.98403332,0.00012854,2]
[312458223,1705899038093,-154.86062544,0.00012854,2]
[312458225,1705899038102,-574.23202612,0.00012854,2]
[312458227,1705899038112,-20.9051931,0.00012854,2]
[312458229,1705899038123,-191.41031682,0.00012854,2]
[312458231,1705899038132,-175.22193864,0.00012854,2]
[312458233,1705899038141,-154.86062544,0.00012855,2]
[312458235,1705899038150,-154.86062544,0.00012855,2]
[312458237,1705899038162,-7960.18375069,0.00012855,2]
[312458239,1705899038172,-154.86062544,0.00012855,2]
[312458241,1705899038181,-21686.1459775,0.00012859,2]
[312458243,1705899038190,-19701.14547142,0.00012859,2]
[312458244,1705899038199,-70913.50377743,0.0001286,2]
[312458246,1705899038209,-644.40876473,0.0001286,2]
[312458248,1705899038219,-309.47389438,0.0001286,2]
[312458249,1705899038228,-2039.05381066,0.00012861,2]
[312458251,1705899038238,-1579.39395429,0.00012861,2]
[312458252,1705899038248,-262.3367316,0.00012861,2]
[312458253,1705899038257,-178.91876323,0.00012861,2]
[312458254,1705899038267,-167.00483785,0.00012861,2]
[312458255,1705899038276,-36965.59360405,0.00012861,2]
[312458256,1705899038286,-260.87494487,0.00012862,2]
[312458257,1705899038295,-4813.95392208,0.00012862,2]
[312458258,1705899038305,-309.47389438,0.00012862,2]
[312458259,1705899038314,-156.02359922,0.00012862,2]
[312458260,1705899038323,-154.86062544,0.00012863,2]
[312458261,1705899038332,-1253.41868812,0.00012864,2]
[312458262,1705899038341,-154.86062544,0.00012864,2]
[312458264,1705899038351,-309.47389438,0.00012864,2]
[312458266,1705899038360,-1993.49479484,0.00012865,2]
[312458267,1705899038369,-309.47389438,0.00012867,2]
[312458269,1705899038379,-309.47389438,0.00012867,2]
[312458271,1705899038388,-256.15485689,0.00012867,2]
[312458272,1705899038398,-154.86062544,0.00012869,2]
[312458273,1705899038407,-2002.61413331,0.00012895,2]
[312458274,1705899038417,-2002.61413331,0.00012895,2]
[312458275,1705899038426,-2002.61413331,0.00012895,2]
[312458276,1705899038436,-176.22005716,0.000129,2]
[312458277,1705899038445,-2070.74228414,0.00012901,2]
[312458278,1705899038454,-494.36714689,0.00013043,2]
[312458279,1705899038463,-470.67463112,0.00013045,2]
[312458280,1705899038472,-1043.88579922,0.00013045,2]
[312458281,1705899038482,-273.86948369,0.00013045,2]
[312458282,1705899038491,-2539.80454429,0.00013362,2]
[312458283,1705899038502,-198.47809363,0.00013497,2]
[312458284,1705899038511,-1139.962631,0.00013699,2]
[312458285,1705899038520,-2767.7647618,0.00013699,2]
[312458286,1705899038529,-200.0,0.00014177,2]
[312458287,1705899038538,-2100.38106354,0.00014508,2]
[312458288,1705899038547,-1266.7890629,0.00015,2]
[312458289,1705899038556,-154.86062544,0.00015,2]
[312458290,1705899038566,-687.96014716,0.00015,2]
[312458291,1705899038575,-2070.7422841,0.00015421,2]
[312458292,1705899038584,-165.7003838,0.00015507,2]
[312458293,1705899038594,-155.18514801,0.00015508,2]
[312458294,1705899038603,-226.96009399,0.00015508,2]
[312458295,1705899038613,-157.81839559,0.00015515,2]
[312458296,1705899038623,-280.0,0.00015594,2]
[312458297,1705899038632,-1003.86777829,0.0001569,2]
[312458298,1705899038641,-199.18550125,0.00015998,2]
[312458299,1705899038651,-258.88009432,0.00015998,2]
[312458300,1705899038661,-156.33928042,0.00015998,2]
[312458301,1705899038781,-155.75299843,0.00015998,2]
[312458302,1705899038791,-2073.0632604,0.00015998,2]
[312458303,1705899038800,-3923.05543327,0.00015998,2]
[312458304,1705899038809,-225.24174207,0.00015998,2]
[312458305,1705899038818,-200.0,0.00015998,2]
[312458306,1705899038827,-294.57701565,0.00015998,2]
[312458307,1705899038837,-200.81357987,0.00015998,2]
[312458308,1705899038845,-197.73567188,0.00015998,2]
[312458309,1705899038855,-183.05526173,0.00015998,2]
[312458310,1705899038864,-307.60539626,0.00015998,2]
[312458311,1705899038873,-156.06983439,0.00015998,2]
[312458312,1705899038883,-302.84435405,0.00015998,2]
[312458313,1705899038892,-190.98888076,0.00015998,2]
[312458314,1705899038902,-1588.5756211,0.00015998,2]
[312458315,1705899038911,-161.06319152,0.00015998,2]
[312458316,1705899038920,-156.36747339,0.00015998,2]
[312458317,1705899038929,-642.25424376,0.00015998,2]
[312458318,1705899038938,-224.31517419,0.00015998,2]
[312458319,1705899038947,-155.43342613,0.00015998,2]
[312458320,1705899038956,-166.55500108,0.00015998,2]
[312458321,1705899038967,-233.02926469,0.00015998,2]
[312458322,1705899038977,-155.11418623,0.00015998,2]
[312458323,1705899038986,-563.75465003,0.00015998,2]
[312458324,1705899038996,-176.33707755,0.00015998,2]
[312458325,1705899039005,-155.45835831,0.00015998,2]
[312458326,1705899039014,-213.55405673,0.00015998,2]
[312458327,1705899039024,-2705.79329076,0.00015998,2]
[312458328,1705899039033,-155.501055,0.00015998,2]
[312458329,1705899039042,-155.41023202,0.00015998,2]
[312458330,1705899039051,-193.50366925,0.00015998,2]
[312458331,1705899039060,-155.20661613,0.00015998,2]
[312458332,1705899039070,-154.95525583,0.00015999,2]
[312458333,1705899039080,-163.07750006,0.00015999,2]
[312458334,1705899039092,-11033.00619666,0.00015999,2]
[312458335,1705899039101,-272.55691777,0.000165,2]
[312458336,1705899039110,-391.0,0.00017154,2]
[312458337,1705899039120,-874.04705685,0.00017235,2]
[312458338,1705899039130,-10531.78529971,0.00017898,2]
[312458339,1705899039139,-2070.7422841,0.0001794,2]
[312458340,1705899039148,-200.0,0.00018869,2]
[312458341,1705899039158,-348.0,0.00018869,2]
[312458342,1705899039168,-1582.38308236,0.00019,2]
[312458343,1705899039180,-169.850359,0.00019178,2]
[312458344,1705899039189,-1114.53942019,0.000195,2]
[312458345,1705899039198,-850.30063575,0.0002,2]
[312458346,1705899039208,-678.6288756,0.0002,2]
[312458347,1705899039217,-323.13003236,0.0002,2]
[312458348,1705899039226,-177.14198927,0.0002,2]
[312458349,1705899039236,-155.66697436,0.0002,2]
[312458350,1705899039246,-1197.48170656,0.0002,2]
[312458351,1705899039256,-158.08319522,0.0002,2]
[312458352,1705899039265,-264.01134898,0.0002,2]
[312458353,1705899039274,-2083.53906819,0.0002,2]
[312458354,1705899039283,-309.47389438,0.0002,2]
[312458355,1705899039293,-190.6950884,0.0002,2]
[312458356,1705899039302,-2070.7422841,0.0002046,2]
[312458357,1705899039311,-1139.962631,0.00020548,2]
[312458358,1705899039319,-200.0,0.00020756,2]
[312458359,1705899039328,-200.0,0.00020756,2]
[312458360,1705899039337,-368.0,0.00020756,2]
[312458361,1705899039346,-327.38324213,0.00021,2]
[312458362,1705899039356,-166.666666,0.00021918,2]
[312458363,1705899039365,-3968.39951784,0.00022,2]
[312458364,1705899039374,-425.98515357,0.00022,2]
[312458365,1705899039383,-154.9380681,0.00022275,2]
[312458366,1705899039392,-166.666666,0.00022431,2]
[312458367,1705899039401,-166.666666,0.00022944,2]
[312458368,1705899039411,-2070.7422841,0.00022979,2]
[312458369,1705899039420,-1571.50470749,0.00023,2]
[312458370,1705899039429,-187.71785532,0.00023033,2]
[312458371,1705899039438,-1826.00758456,0.00023079,2]
[312458372,1705899039448,-300.0,0.00023079,2]
[312458373,1705899039457,-154.86062544,0.00023079,2]
[312458374,1705899039466,-284227.95491571,0.00023079,2]
[312458375,1705899039475,-158.92514972,0.00023079,2]
[312458376,1705899039484,-342.81948955,0.00023079,2]
[312458377,1705899039494,-166.666666,0.00023456,2]
[312458378,1705899039503,-166.666666,0.00023969,2]
[312458379,1705899039512,-166.666666,0.00024482,2]
[312458380,1705899039522,-1000.0,0.00024657,2]
[312458381,1705899039531,-1000.0,0.00024657,2]
[312458382,1705899039540,-421.46347451,0.00024657,2]
[312458383,1705899039549,-380.0,0.00024658,2]
[312458384,1705899039559,-200.0,0.00024658,2]
[312458385,1705899039568,-824.33300328,0.000247,2]
[312458386,1705899039578,-498.88477678,0.0002496,5]
[312458387,1705899039587,-394.7881014,0.00024998,2]
[312458388,1705899039596,-500.0,0.00024998,2]
[312458389,1705899039606,-500.0,0.00024998,2]
[312458390,1705899039615,-500.0,0.00024998,2]
[312458391,1705899039625,-500.0,0.00024998,2]
[312458392,1705899039635,-500.0,0.00024998,2]
[312458393,1705899039645,-500.0,0.00024998,2]
[312458394,1705899039654,-500.0,0.00024998,2]
[312458395,1705899039663,-284.50798725,0.00024998,2]
[312458396,1705899039673,-500.0,0.00024998,2]
[312458397,1705899039682,-158.63661228,0.00024998,2]
[312458398,1705899039692,-500.0,0.00024998,2]
[312458399,1705899039702,-500.0,0.00024998,2]
[312458400,1705899039711,-500.0,0.00024998,2]
[312458401,1705899039720,-500.0,0.00024998,2]
[312458402,1705899039730,-289.25589211,0.00024998,2]
[312458403,1705899039739,-500.0,0.00024998,2]
[312458404,1705899039750,-500.0,0.00024998,2]
[312458405,1705899039759,-443.5837111,0.00024998,2]
[312458406,1705899039769,-500.0,0.00024998,2]
[312458407,1705899039779,-500.0,0.00024998,2]
[312458408,1705899039788,-500.0,0.00024998,2]
[312458409,1705899039798,-500.0,0.00024998,2]
[312458410,1705899039807,-483.89696649,0.00024998,2]
[312458411,1705899039817,-500.0,0.00024998,2]
[312458412,1705899039827,-500.0,0.00024998,2]
[312458413,1705899039836,-500.0,0.00024998,2]
[312458414,1705899039846,-500.0,0.00024998,2]
[312458415,1705899039855,-500.0,0.00024998,2]
[312458416,1705899039865,-339.81873286,0.00024998,2]
[312458417,1705899039875,-500.0,0.00024998,2]
[312458418,1705899039884,-500.0,0.00024998,2]
[312458419,1705899039894,-500.0,0.00024998,2]
[312458420,1705899039903,-500.0,0.00024998,2]
[312458421,1705899039912,-500.0,0.00024998,2]
[312458422,1705899039922,-500.0,0.00024998,2]
[312458423,1705899039932,-500.0,0.00024998,2]
[312458424,1705899039942,-500.0,0.00024998,2]
[312458425,1705899039951,-763.99864371,0.00025,2]
[312458426,1705899039960,-7381.29040931,0.00025,2]
[312458427,1705899039970,-679.71377977,0.00025,2]
[312458428,1705899039979,-237.63369757,0.00025,2]
[312458429,1705899039989,-1046.35622193,0.00025,2]
[312458430,1705899040000,-4723.24260277,0.00025,2]
[312458431,1705899040010,-154.86062544,0.00025,2]
[312458432,1705899040019,-209.84243657,0.00025,2]
[312458433,1705899040030,-155.376373,0.00025,2]
[312458434,1705899040040,-154.86062544,0.00025,2]
[312458435,1705899040049,-154.86062544,0.00025,2]
[312458436,1705899040059,-1007.29215616,0.00025,2]
[312458437,1705899040068,-7301.45397863,0.00025,2]
[312458438,1705899040077,-151.0,0.00025027,2]
[312458439,1705899040090,-4010.37580387,0.00026,2]
[312458440,1705899040100,-952.03670803,0.000264,2]
[312458441,1705899040110,-1507.6392133,0.0002672,2]
[312458442,1705899040119,-151.0,0.00026976,2]
[312458443,1705899040129,-500.0,0.00027397,2]
[312458444,1705899040138,-155.0,0.00027397,2]
[312458445,1705899040148,-15228.51,0.00027397,3]
[312458446,1705899040158,-261.58936724,0.000274,2]
[312458447,1705899040168,-500.0,0.00027534,2]
[312458448,1705899040177,-500.0,0.00027671,2]
[312458449,1705899040187,-636.6018354,0.0002772,2]
[312458450,1705899040196,-9121.34550853,0.0002775,4]
[312458451,1705899040206,-500.0,0.00027808,2]
[312458452,1705899040216,-380.20751077,0.00027945,2]
[312458453,1705899040226,-290.14149083,0.00028,2]
[312458454,1705899040235,-600.0,0.00028,2]
[312458455,1705899040244,-307.07161549,0.00028,2]
[312458456,1705899040254,-8005.07364594,0.00028139,5]
[312458457,1705899040264,-35753.50851745,0.00028139,5]
[312458458,1705899040273,-7508.23678866,0.00028139,5]
[312458459,1705899040283,-1544.45910599,0.00028139,5]
[312458460,1705899040292,-176.22005716,0.00028282,4]
[312458461,1705899040302,-1500.0,0.000285,2]
[312458462,1705899040312,-300.0,0.000287,14]
[312458463,1705899040321,-155.0,0.00028767,2]
[312458464,1705899040330,-174.913712,0.00028767,2]
[312458465,1705899040340,-172.373955,0.00028767,2]
[312458466,1705899040349,-151.0,0.00028924,2]